bitfinex/quotes_BTCUSD_20250316
["timestamp","ask_amount","ask_price","bid_price","bid_amount"]
[1742132257417,0.01114337,83211.0,83208.0,0.0003386]
[1742132257620,0.01114337,83211.0,83209.0,0.004]
[1742132258630,0.01114337,83211.0,83209.0,0.002117]
[1742132259035,0.01114337,83211.0,83209.0,0.006117]
[1742132259584,0.01114337,83211.0,83209.0,0.004]
[1742132259791,0.02316037,83211.0,83209.0,0.004]
[1742132259992,0.01114337,83211.0,83210.0,0.252372]
[1742132260376,0.3,83220.0,83216.0,0.240337]
[1742132260551,0.00069048,83219.0,83217.0,0.012016]
[1742132260755,0.01045236,83218.0,83217.0,0.012016]
[1742132261926,0.01045236,83218.0,83217.0,0.0826]
[1742132262456,0.01045236,83218.0,83217.0,0.334951]
[1742132263221,0.01045236,83218.0,83217.0,0.336951]
[1742132263444,0.012014,83235.0,83226.0,0.240309]
[1742132263642,0.3,83234.0,83230.0,0.240295]
[1742132263848,0.390848,83238.0,83232.0,0.012014]
[1742132263849,0.150573,83238.0,83232.0,0.012014]
[1742132264051,0.40961565,83238.0,83234.0,0.240284]
[1742132264217,0.16933965,83238.0,83234.0,0.240284]
[1742132264415,0.27105565,83238.0,83234.0,0.240284]
[1742132264636,0.27105565,83238.0,83237.0,0.012013]
[1742132264637,0.01876665,83238.0,83237.0,0.012013]
[1742132264842,0.3,83242.0,83238.0,0.240274]
[1742132265084,0.3,83242.0,83239.0,0.252283]
[1742132265229,0.76328,83243.0,83239.0,0.252283]
[1742132265426,0.0006743,83241.0,83239.0,0.252283]
[1742132265630,0.78194818,83243.0,83242.0,0.011013]
[1742132266596,0.78194818,83243.0,83242.0,0.010013]
[1742132267375,0.78194818,83243.0,83242.0,0.011013]
[1742132267976,0.240258,83244.0,83242.0,0.001]
[1742132268177,0.2524292,83248.0,83243.0,0.24026]
[1742132268377,0.24025,83247.0,83243.0,0.24026]
[1742132268582,0.24025,83247.0,83243.0,0.2385653]
[1742132268982,0.240254,83246.0,83242.0,0.001]
[1742132269178,0.012012,83246.0,83242.0,0.001]
[1742132269529,0.012012,83246.0,83241.0,0.252278]
[1742132270111,0.03053366,83247.0,83242.0,0.252274]
[1742132270611,0.252263,83246.0,83239.0,0.252283]
[1742132270812,0.252263,83246.0,83240.0,0.240267]
[1742132271441,0.012012,83244.0,83240.0,0.240267]
[1742132273460,0.252268,83245.0,83240.0,0.240267]
[1742132274053,0.252268,83245.0,83240.0,0.241267]
[1742132274269,0.252268,83245.0,83240.0,0.240267]
[1742132275056,0.252263,83246.0,83241.0,0.240264]
[1742132275252,0.01852166,83247.0,83243.0,0.240258]
[1742132275459,0.0001692,83248.0,83245.0,0.315552]
[1742132275700,0.0001692,83248.0,83246.0,0.240248]
[1742132275915,0.0001692,83248.0,83247.0,0.012012]
[1742132276302,0.0001692,83248.0,83245.0,0.087312]
[1742132276509,0.0001692,83248.0,83245.0,0.327565]
[1742132276712,0.0001692,83248.0,83246.0,0.240249]
[1742132277019,0.0001692,83248.0,83246.0,0.252261]
[1742132277561,0.0001692,83248.0,83246.0,0.012012]
[1742132278026,0.0001692,83248.0,83246.0,0.013012]
[1742132278171,0.0001692,83248.0,83246.0,0.253261]
[1742132278573,0.0001692,83248.0,83246.0,0.25173577]
[1742132279726,0.0001692,83248.0,83246.0,0.25273577]
[1742132280406,0.00073921,83247.0,83246.0,0.25273577]
[1742132281444,0.00073921,83247.0,83246.0,0.25173577]
[1742132281756,0.00073921,83247.0,83246.0,0.002]
[1742132282748,0.00073921,83247.0,83246.0,0.001]
[1742132283101,0.02333358,83247.0,83246.0,0.002]
[1742132285907,0.03961739,83247.0,83246.0,0.002]
[1742132286114,0.10293766,83247.0,83246.0,0.002]
[1742132286648,0.10293766,83247.0,83246.0,0.001]
[1742132288355,0.012013,83243.0,83242.0,0.0003384]
[1742132288794,0.26072731,83243.0,83242.0,0.0003384]
[1742132288928,0.40790234,83243.0,83242.0,0.0003384]
[1742132289132,0.33832731,83243.0,83242.0,0.0003384]
[1742132289630,0.252354,83216.0,83213.0,0.06966234]
[1742132289830,0.00835867,83215.0,83213.0,0.06978635]
[1742132290535,0.24870067,83215.0,83213.0,0.06978635]
[1742132290734,0.00835867,83215.0,83213.0,0.06978635]
[1742132290935,0.00835867,83215.0,83213.0,0.07578635]
[1742132291564,0.252361,83214.0,83213.0,0.07578635]
[1742132291890,0.26074669,83214.0,83213.0,0.08178635]
[1742132292026,0.26074669,83214.0,83213.0,0.07578635]
[1742132292229,0.26074669,83214.0,83213.0,0.00612401]
[1742132292666,0.26074669,83214.0,83213.0,0.00012401]
[1742132292877,0.26074669,83214.0,83213.0,0.00312401]
[1742132293158,0.26074669,83214.0,83213.0,0.00612401]
[1742132293643,0.26206833,83214.0,83213.0,0.00612401]
[1742132293955,0.56206833,83214.0,83213.0,0.00612401]
[1742132295412,0.56206833,83214.0,83213.0,0.00012401]
[1742132295546,0.56206833,83214.0,83213.0,0.00112401]
[1742132295741,0.56206833,83214.0,83213.0,0.00012401]
[1742132296348,0.61259112,83214.0,83213.0,0.00012401]
[1742132296594,0.61359112,83214.0,83213.0,0.00012401]
[1742132297143,0.56206833,83214.0,83213.0,0.00012401]
[1742132298975,0.97996833,83214.0,83213.0,1e-08]
[1742132299212,1.02117475,83214.0,83213.0,1e-08]
[1742132299417,1.11768922,83214.0,83213.0,1e-08]
[1742132299677,1.16668922,83214.0,83213.0,1e-08]
[1742132299934,1.28826425,83214.0,83213.0,1e-08]
[1742132300489,1.28626425,83214.0,83213.0,1e-08]
[1742132300697,1.29026425,83214.0,83213.0,1e-08]
[1742132301769,0.012021,83186.0,83184.0,0.07851481]
[1742132301972,0.252438,83189.0,83185.0,4.137e-05]
[1742132302268,0.00953156,83188.0,83185.0,4.137e-05]
[1742132302474,0.240424,83187.0,83185.0,4.137e-05]
[1742132302614,0.012021,83186.0,83185.0,4.137e-05]
[1742132303036,0.00953156,83186.0,83185.0,4.137e-05]
[1742132303365,0.02155256,83186.0,83185.0,0.00304137]
[1742132303766,0.02155256,83186.0,83185.0,4.137e-05]
[1742132304179,0.02155256,83186.0,83185.0,0.00604137]
[1742132305021,0.04057546,83186.0,83185.0,0.00604137]
[1742132305604,0.04057546,83186.0,83185.0,0.00304137]
[1742132305986,0.04057546,83186.0,83185.0,0.00704137]
[1742132306854,0.02855446,83186.0,83185.0,0.00704137]
[1742132307025,0.00953156,83186.0,83185.0,0.01906237]
[1742132307362,0.00953156,83186.0,83185.0,0.00704137]
[1742132307774,0.02155256,83186.0,83185.0,0.00704137]
[1742132309688,0.32155256,83186.0,83185.0,0.00704137]
[1742132310853,0.32155256,83186.0,83185.0,0.00304137]
[1742132311589,0.32155256,83186.0,83185.0,4.137e-05]
[1742132312823,0.32155256,83186.0,83185.0,0.00104137]
[1742132313423,0.03088248,83186.0,83185.0,0.00104137]
[1742132313630,0.00788613,83186.0,83185.0,0.00104137]
[1742132314458,0.01990713,83186.0,83185.0,0.00104137]
[1742132316467,0.240446,83179.0,83175.0,0.04690261]
[1742132316670,0.240449,83178.0,83175.0,0.04690261]
[1742132317072,0.25866572,83177.0,83175.0,0.04690261]
[1742132317386,0.012022,83176.0,83175.0,0.04690261]
[1742132317800,0.01821854,83176.0,83175.0,0.04690261]
[1742132317972,0.00619654,83176.0,83175.0,0.04690261]
[1742132318380,0.00619654,83176.0,83175.0,0.04990261]
[1742132319104,0.00619654,83176.0,83175.0,0.05290261]
[1742132319721,0.00619654,83176.0,83175.0,0.04990261]
[1742132320129,0.00619654,83176.0,83175.0,0.05290261]
[1742132320340,0.252471,83178.0,83175.0,0.05290261]
[1742132320560,0.00789695,83176.0,83175.0,0.05290261]
[1742132320839,0.252471,83178.0,83175.0,0.05290261]
[1742132321034,0.00788659,83176.0,83175.0,0.05290261]
[1742132321211,0.252471,83178.0,83175.0,0.05290261]
[1742132321383,0.00788217,83176.0,83175.0,0.04990261]
[1742132321583,0.252471,83178.0,83175.0,0.04990261]
[1742132321802,0.00788659,83176.0,83175.0,0.04990261]
[1742132322020,0.252471,83178.0,83175.0,0.05290261]
[1742132322236,0.252471,83178.0,83175.0,0.04990261]
[1742132322447,0.0078807,83177.0,83175.0,0.04690261]
[1742132322643,0.0078807,83177.0,83175.0,0.04990261]
[1742132322840,0.0078807,83177.0,83175.0,0.29335861]
[1742132323100,0.0078807,83177.0,83175.0,0.29035861]
[1742132323299,0.0078807,83177.0,83175.0,0.29335861]
[1742132323553,0.0078807,83177.0,83175.0,0.30238061]
[1742132324213,0.0078807,83177.0,83175.0,0.29938061]
[1742132324692,0.0078807,83177.0,83175.0,0.30238061]
[1742132325094,0.0078807,83177.0,83175.0,0.04690261]
[1742132325299,0.252465,83180.0,83175.0,0.28735761]
[1742132325451,0.252465,83180.0,83175.0,0.29035761]
[1742132325665,0.24833213,83179.0,83175.0,0.05290261]
[1742132325862,0.00788513,83179.0,83176.0,0.252475]
[1742132326076,0.00788513,83179.0,83177.0,0.240449]
[1742132326729,0.00788513,83179.0,83178.0,0.012022]
[1742132327351,0.00788513,83179.0,83178.0,0.095122]
[1742132327818,0.00012374,83186.0,83185.0,0.095121]
[1742132328111,0.00012374,83186.0,83185.0,0.335548]
[1742132329177,0.00012374,83186.0,83185.0,0.338548]
[1742132329583,0.00800079,83186.0,83185.0,0.338548]
[1742132329777,0.0063283,83186.0,83185.0,0.341548]
[1742132331575,0.00012374,83186.0,83185.0,0.341548]
[1742132332706,0.00801122,83186.0,83185.0,0.341548]
[1742132332948,0.00012374,83186.0,83185.0,0.341548]
[1742132338132,0.00800233,83186.0,83185.0,0.341548]
[1742132338326,0.00012374,83186.0,83185.0,0.341548]
[1742132338608,0.00800233,83186.0,83185.0,0.341548]
[1742132338806,0.00012374,83186.0,83185.0,0.341548]
[1742132338987,0.00800554,83186.0,83185.0,0.341548]
[1742132339242,0.00012374,83186.0,83185.0,0.341548]
[1742132339418,0.00800554,83186.0,83185.0,0.387048]
[1742132339556,0.00012374,83186.0,83185.0,0.387048]
[1742132340872,0.00012374,83186.0,83185.0,0.384048]
[1742132341427,0.00112374,83186.0,83185.0,0.389048]
[1742132341928,0.00112374,83186.0,83185.0,0.384048]
[1742132341929,0.00012374,83186.0,83185.0,0.384048]
[1742132342129,0.00129304,83186.0,83185.0,0.386048]
[1742132342506,0.00129304,83186.0,83185.0,0.391048]
[1742132348398,4e-08,83186.0,83185.0,0.70558885]
[1742132348612,0.76352,83222.0,83213.0,0.252364]
[1742132348855,0.0002933,83214.0,83213.0,0.381064]
[1742132349054,0.0002933,83214.0,83213.0,0.1287]
[1742132349261,0.00828683,83214.0,83213.0,0.1277]
[1742132349585,0.0002933,83214.0,83213.0,0.1277]
[1742132350385,0.0002933,83214.0,83207.0,0.252379]
[1742132350386,0.240357,83210.0,83205.0,0.240369]
[1742132350805,0.240351,83212.0,83207.0,0.240362]
[1742132350944,0.012017,83213.0,83208.0,0.252377]
[1742132351157,0.012017,83213.0,83209.0,0.240357]
[1742132351359,0.012017,83213.0,83207.0,0.012018]
[1742132351964,0.00828683,83214.0,83209.0,0.252373]
[1742132352159,0.00828683,83214.0,83210.0,0.240354]
[1742132352395,0.00828683,83214.0,83212.0,0.321447]
[1742132352621,0.00828683,83214.0,83213.0,0.012017]
[1742132353270,0.0002933,83214.0,83213.0,0.012017]
[1742132355255,0.0002933,83214.0,83213.0,0.014017]
[1742132355806,0.0002933,83214.0,83213.0,0.017017]
[1742132356461,0.0002933,83214.0,83213.0,0.062017]
[1742132358053,0.0002933,83214.0,83213.0,0.14351868]
[1742132358480,0.0002933,83214.0,83213.0,0.14051868]
[1742132358859,0.0002933,83214.0,83213.0,0.13851868]
[1742132359065,0.0002933,83214.0,83213.0,0.14151868]
[1742132359289,0.0002933,83214.0,83213.0,0.14451868]
[1742132359461,0.0002933,83214.0,83213.0,0.14151868]
[1742132359816,0.0002933,83214.0,83213.0,0.13851868]
[1742132360005,0.0002933,83214.0,83213.0,0.14351868]
[1742132360414,0.0002933,83214.0,83213.0,0.146317]
[1742132361836,0.0002933,83214.0,83213.0,0.341664]
[1742132365474,0.0002933,83214.0,83213.0,0.3420026]
[1742132370523,0.0002933,83214.0,83213.0,0.0896386]
[1742132370966,0.00837697,83214.0,83213.0,0.1016556]
[1742132371676,0.0002933,83214.0,83213.0,0.1016556]
[1742132373514,0.0002933,83214.0,83213.0,0.0093386]
[1742132373668,0.63410684,83214.0,83213.0,0.0093386]
[1742132373893,0.012021,83185.0,83179.0,0.1384]
[1742132374100,0.240413,83191.0,83179.0,0.1384]
[1742132374101,0.252433,83191.0,83179.0,0.1384]
[1742132374299,0.252436,83189.0,83179.0,0.1384]
[1742132374493,0.252442,83188.0,83179.0,0.1384]
[1742132374694,0.240439,83182.0,83179.0,0.1384]
[1742132374923,0.240442,83180.0,83179.0,0.1384]
[1742132375248,0.012022,83179.0,83177.0,0.0811]
[1742132375395,0.24848608,83180.0,83177.0,0.0811]
[1742132375581,0.240442,83180.0,83177.0,0.0811]
[1742132375776,0.240442,83180.0,83179.0,0.004]
[1742132376228,0.240442,83180.0,83177.0,0.0811]
[1742132376229,0.252464,83180.0,83177.0,0.0811]
[1742132376431,0.240442,83180.0,83177.0,0.0811]
[1742132377275,0.252464,83180.0,83177.0,0.0811]
[1742132377418,0.012022,83179.0,83178.0,0.0053386]
[1742132378269,0.01822642,83179.0,83178.0,0.0093386]
[1742132378854,0.01822642,83179.0,83178.0,0.0053386]
[1742132379044,0.01822642,83179.0,83178.0,0.0003386]
[1742132379243,0.01822642,83179.0,83178.0,0.0043386]
[1742132379987,0.00620442,83179.0,83178.0,0.0103386]
[1742132380388,0.01822642,83179.0,83178.0,0.0043386]
[1742132380807,0.01822642,83179.0,83178.0,0.0083386]
[1742132381009,0.01822642,83179.0,83178.0,0.0043386]
[1742132381352,0.01822642,83179.0,83178.0,0.0003386]
[1742132381756,0.00620442,83179.0,83178.0,0.0043386]
[1742132382612,0.00620442,83179.0,83178.0,0.0083386]
[1742132382826,0.00620442,83179.0,83178.0,0.0043386]
[1742132383225,0.00620442,83179.0,83178.0,0.0083386]
[1742132383889,0.01822642,83179.0,83178.0,0.0083386]
[1742132385472,0.01991894,83179.0,83178.0,0.0083386]
[1742132385786,0.01991894,83179.0,83178.0,0.0043386]
[1742132386186,0.01991894,83179.0,83178.0,0.0063386]
[1742132386398,0.01991894,83179.0,83178.0,0.0023386]
[1742132386912,0.01991894,83179.0,83178.0,0.0043386]
[1742132390618,0.01991894,83179.0,83178.0,0.0024546]
[1742132393266,0.04380871,83179.0,83178.0,0.0024546]
[1742132400176,0.04380871,83179.0,83178.0,0.0816546]
[1742132400177,0.00789694,83179.0,83178.0,0.0816546]
[1742132400379,0.01991894,83179.0,83178.0,0.0816546]
[1742132400607,0.01991894,83179.0,83178.0,0.079959]
[1742132400767,0.01991894,83179.0,83178.0,0.0802972]
[1742132402111,0.01991894,83179.0,83178.0,0.0010972]
[1742132402772,0.31991894,83179.0,83178.0,0.0010972]
[1742132404315,0.32091894,83179.0,83178.0,0.0010972]
[1742132404715,0.32091894,83179.0,83178.0,0.0003382]
[1742132405025,0.32291894,83179.0,83178.0,0.0003382]
[1742132405613,0.32091894,83179.0,83178.0,0.0003382]
[1742132406027,0.32191894,83179.0,83178.0,0.0003382]
[1742132410710,0.252502,83167.0,83166.0,0.07835076]
[1742132410900,0.012023,83167.0,83166.0,0.07876466]
[1742132411163,0.01986863,83167.0,83166.0,0.07876466]
[1742132411984,0.01986863,83167.0,83166.0,0.08176466]
[1742132413286,0.01986863,83167.0,83166.0,0.0034139]
[1742132413912,0.01986863,83167.0,83166.0,0.0064139]
[1742132414353,0.31986863,83167.0,83166.0,0.0004139]
[1742132414530,0.32086863,83167.0,83166.0,0.0004139]
[1742132414739,0.32186863,83167.0,83166.0,0.0004139]
[1742132415097,0.31986863,83167.0,83166.0,0.0004139]
[1742132415700,0.31986863,83167.0,83166.0,0.00031347]
[1742132415899,0.31986863,83167.0,83166.0,0.00021301]
[1742132416254,0.34402473,83167.0,83166.0,0.00021301]
[1742132416465,0.34602473,83167.0,83166.0,0.00021301]
[1742132417003,0.38492473,83167.0,83166.0,0.00021301]
[1742132417313,0.4441689,83167.0,83166.0,0.00021301]
[1742132417513,0.49237532,83167.0,83166.0,0.00021301]
[1742132417720,0.90727532,83167.0,83166.0,1e-08]
[1742132417925,0.8680689,83167.0,83166.0,1e-08]
[1742132418118,0.95817532,83167.0,83166.0,1e-08]
[1742132418331,0.99928905,83167.0,83166.0,1e-08]
[1742132418530,1.04928905,83167.0,83166.0,1e-08]
[1742132418957,0.552536,83156.0,83155.0,0.0003382]
[1742132419115,1.316296,83156.0,83155.0,0.00046194]
[1742132419329,1.32394649,83156.0,83155.0,0.00046194]
[1742132419770,1.44416664,83156.0,83155.0,0.00046194]
[1742132420166,1.44416664,83156.0,83155.0,9.4e-07]
[1742132420368,1.56374167,83156.0,83155.0,9.4e-07]
[1742132420547,1.98064167,83156.0,83155.0,9.4e-07]
[1742132420753,1.86406664,83156.0,83155.0,9.4e-07]
[1742132421001,1.88360749,83156.0,83155.0,9.4e-07]
[1742132421205,1.88360749,83156.0,83129.0,0.0008384]
[1742132421206,0.252616,83130.0,83129.0,0.0008384]
[1742132421417,0.552616,83130.0,83129.0,0.00096257]
[1742132421562,0.24550423,83130.0,83129.0,0.00096257]
[1742132421992,0.49812023,83130.0,83129.0,0.00096257]
[1742132422195,0.51472231,83130.0,83129.0,0.00096257]
[1742132422914,0.52076376,83130.0,83129.0,0.00096257]
[1742132423719,0.54474622,83130.0,83129.0,0.00096257]
[1742132423921,0.54574622,83130.0,83129.0,0.00096257]
[1742132424330,0.54474622,83130.0,83129.0,0.00096257]
[1742132424913,0.55369079,83130.0,83129.0,0.00096257]
[1742132425331,0.55569079,83130.0,83129.0,0.00096257]
[1742132425759,0.55869079,83130.0,83129.0,0.00096257]
[1742132426877,0.55669079,83130.0,83129.0,0.00096257]
[1742132427093,0.55869079,83130.0,83129.0,0.00096257]
[1742132427296,0.55569079,83130.0,83129.0,0.00096257]
[1742132427445,0.55769079,83130.0,83129.0,0.00096257]
[1742132430116,0.55569079,83130.0,83129.0,0.00096257]
[1742132430342,0.77590667,83130.0,83129.0,0.00096257]
[1742132430538,0.25267,83112.0,83111.0,0.0008]
[1742132430709,0.25267,83112.0,83111.0,0.00089437]
[1742132430912,0.26026369,83112.0,83111.0,0.00089437]
[1742132432715,0.56026369,83112.0,83111.0,0.00089437]
[1742132434852,0.56126369,83112.0,83111.0,0.00089437]
[1742132435371,0.56226369,83112.0,83111.0,0.00089437]
[1742132436704,0.56126369,83112.0,83111.0,0.00089437]
[1742132437120,0.56326369,83112.0,83111.0,0.00089437]
[1742132437354,0.56326369,83112.0,83111.0,0.00106357]
[1742132438090,0.56226369,83112.0,83111.0,0.00106357]
[1742132438294,0.60304645,83112.0,83111.0,0.00106357]
[1742132438498,0.72206012,83112.0,83111.0,0.00106357]
[1742132439844,0.72006012,83112.0,83111.0,0.00106357]
[1742132440164,0.72306012,83112.0,83111.0,0.00106357]
[1742132440370,0.60604645,83112.0,83111.0,0.00106357]
[1742132440969,0.60404645,83112.0,83111.0,0.00106357]
[1742132441134,1.02494645,83112.0,83111.0,0.00106357]
[1742132442396,1.74840369,83112.0,83111.0,0.00106357]
[1742132444752,0.540679,83098.0,83097.0,0.07858343]
[1742132445033,0.3,83098.0,83097.0,0.07862477]
[1742132445233,0.30594816,83098.0,83097.0,0.07862477]
[1742132445434,0.30824601,83098.0,83097.0,0.07862477]
[1742132447062,0.28824601,83098.0,83097.0,0.07862477]
[1742132449061,0.28824601,83098.0,83097.0,0.07826307]
[1742132451594,0.28824601,83098.0,83097.0,0.14009707]
[1742132451595,0.00824601,83098.0,83097.0,0.14009707]
[1742132452024,0.00911927,83102.0,83098.0,0.012033]
[1742132452443,0.00911927,83102.0,83099.0,0.240675]
[1742132453652,0.00911927,83102.0,83100.0,0.240672]
[1742132453808,0.00911927,83102.0,83101.0,0.075]
[1742132454210,0.00911927,83102.0,83101.0,0.087033]
[1742132454415,0.240643,83111.0,83101.0,0.087033]
[1742132454416,1.01691,83112.0,83101.0,0.087033]
[1742132454616,0.76424,83112.0,83111.0,0.377474]
[1742132455461,0.7702053,83112.0,83111.0,0.377474]
[1742132458089,0.7702053,83112.0,83111.0,0.1248]
[1742132459841,0.7822363,83112.0,83111.0,0.1248]
[1742132460246,0.78450036,83112.0,83111.0,0.1248]
[1742132461295,1.08450036,83112.0,83111.0,0.075]
[1742132461490,0.252698,83103.0,83102.0,0.0786]
[1742132461671,0.02027983,83103.0,83102.0,0.0786]
[1742132462342,0.012033,83099.0,83098.0,0.0001694]
[1742132462674,0.012033,83102.0,83098.0,0.0001694]
[1742132462881,0.26094783,83103.0,83102.0,0.0786]
[1742132462882,0.00824683,83103.0,83102.0,0.0786]
[1742132463077,0.00824683,83103.0,83102.0,0.090633]
[1742132463290,0.00824683,83103.0,83102.0,0.0786]
[1742132463491,0.00824683,83103.0,83102.0,0.090633]
[1742132464086,0.00824683,83103.0,83102.0,0.0786]
[1742132464537,0.012033,83104.0,83102.0,0.0786]
[1742132465067,0.312033,83103.0,83102.0,0.0786]
[1742132465263,0.31796315,83103.0,83102.0,0.0786]
[1742132467156,0.31786315,83103.0,83102.0,0.0786]
[1742132467361,0.00593015,83103.0,83102.0,0.0786]
[1742132467693,0.240662,83106.0,83102.0,0.319265]
[1742132467831,0.00593015,83103.0,83102.0,0.331298]
[1742132468032,0.012032,83107.0,83102.0,0.331298]
[1742132468231,0.00593015,83103.0,83102.0,0.331298]
[1742132468430,0.252687,83107.0,83102.0,0.331298]
[1742132468656,0.00593015,83103.0,83102.0,0.331298]
[1742132468873,0.252687,83107.0,83102.0,0.331298]
[1742132469030,0.00593015,83103.0,83102.0,0.331298]
[1742132469236,0.253689,83106.0,83102.0,0.0786]
[1742132469481,0.00594818,83103.0,83102.0,0.0786]
[1742132469618,0.252689,83106.0,83102.0,0.0786]
[1742132469817,0.00594527,83105.0,83102.0,0.0786]
[1742132470042,0.00594527,83105.0,83104.0,0.240662]
[1742132470242,0.252682,83108.0,83104.0,0.240662]
[1742132470444,0.00593598,83105.0,83104.0,0.240662]
[1742132470651,0.252687,83107.0,83102.0,0.0786]
[1742132470990,0.00593598,83105.0,83102.0,0.319266]
[1742132471229,0.00693889,83106.0,83102.0,0.319266]
[1742132471364,0.00593015,83104.0,83102.0,0.319266]
[1742132471545,0.001,83106.0,83102.0,0.319266]
[1742132471749,0.00592723,83103.0,83102.0,0.319266]
[1742132472026,0.52091702,83109.0,83102.0,0.319266]
[1742132472231,0.00592481,83103.0,83102.0,0.0786]
[1742132472435,0.240661,83105.0,83102.0,0.0786]
[1742132472629,0.240659,83106.0,83102.0,0.319266]
[1742132472814,0.00592481,83103.0,83102.0,0.319266]
[1742132473016,0.240659,83106.0,83102.0,0.0786]
[1742132473228,0.252709,83099.0,83098.0,0.0001694]
[1742132473620,0.25861924,83099.0,83098.0,0.0001694]
[1742132475280,0.26095302,83099.0,83098.0,0.0001694]
[1742132478527,0.27981848,83099.0,83098.0,0.0001694]
[1742132480592,0.02710948,83099.0,83098.0,0.0001694]
[1742132480996,0.03914248,83099.0,83098.0,0.0001694]
[1742132482510,0.02710948,83099.0,83098.0,0.0001694]
[1742132482697,0.02710948,83099.0,83098.0,0.3201484]
[1742132482898,0.01886546,83099.0,83098.0,0.3201484]
[1742132483123,0.01886546,83099.0,83098.0,0.3321814]
[1742132488048,0.0123706,83109.0,83108.0,0.24065]
[1742132488049,0.0003386,83109.0,83108.0,0.24065]
[1742132488253,0.0003386,83109.0,83108.0,0.31895]
[1742132488449,0.0003386,83109.0,83108.0,0.0783]
[1742132489395,0.0013386,83109.0,83108.0,0.0783]
[1742132490080,0.0033386,83109.0,83108.0,0.0783]
[1742132490512,0.00556905,83109.0,83108.0,0.0783]
[1742132491032,0.00556905,83109.0,83108.0,0.380182]
[1742132491546,0.02842924,83109.0,83108.0,0.380182]
[1742132491799,0.02220078,83109.0,83108.0,0.380182]
[1742132491966,0.02842924,83109.0,83108.0,0.380182]
[1742132492196,0.02542924,83109.0,83108.0,0.380182]
[1742132492414,0.02542924,83109.0,83108.0,0.383182]
[1742132492604,0.00656706,83109.0,83108.0,0.383182]
[1742132495813,0.0003386,83109.0,83108.0,0.383182]
[1742132496103,0.0003386,83109.0,83108.0,0.521542]
[1742132496598,0.0003386,83109.0,83108.0,0.519542]
[1742132496797,0.0003386,83109.0,83108.0,0.521542]
[1742132496996,0.01919953,83109.0,83108.0,0.521542]
[1742132497330,0.0003386,83109.0,83108.0,0.521542]
[1742132497834,0.0003386,83109.0,83108.0,0.5217113]
[1742132498646,0.0003386,83109.0,83108.0,0.5207113]
[1742132499228,0.0003386,83109.0,83108.0,0.5237113]
[1742132499970,0.01919929,83109.0,83108.0,0.5237113]
[1742132508744,0.25984629,83109.0,83108.0,0.0834693]
[1742132508949,0.26137844,83109.0,83108.0,0.0051693]
[1742132509668,0.27654404,83109.0,83108.0,0.0021693]
[1742132510116,0.57654404,83109.0,83108.0,0.0021693]
[1742132511104,0.57654404,83109.0,83108.0,0.0041693]
[1742132511304,0.57654404,83109.0,83108.0,0.0021693]
[1742132511542,0.57654404,83109.0,83108.0,0.0001693]
[1742132511856,0.57754404,83109.0,83108.0,0.0001693]
[1742132512220,0.59540757,83109.0,83108.0,0.0001693]
[1742132512453,0.59640757,83109.0,83108.0,0.0001693]
[1742132512871,0.59740757,83109.0,83108.0,0.0001693]
[1742132513074,0.7597826,83109.0,83108.0,0.0001693]
[1742132513393,0.74091907,83109.0,83108.0,0.0001693]
[1742132515528,0.62134404,83109.0,83108.0,0.0001693]
[1742132516391,0.64020934,83109.0,83108.0,0.0001693]
[1742132518369,0.59740934,83109.0,83108.0,0.0001693]
[1742132520179,0.04473034,83109.0,83108.0,0.0001693]
[1742132520382,0.02584201,83109.0,83108.0,0.0001693]
[1742132520786,0.0175042,83109.0,83108.0,0.0122013]
[1742132521009,0.02574877,83109.0,83108.0,0.0910013]
[1742132521230,0.02474877,83109.0,83108.0,0.0910013]
[1742132521440,0.0165042,83109.0,83108.0,0.0910013]
[1742132521853,0.2681832,83109.0,83108.0,0.0789693]
[1742132522265,0.27645551,83109.0,83108.0,0.0789693]
[1742132522863,0.65466944,83109.0,83108.0,0.0021693]
[1742132523036,0.57645551,83109.0,83108.0,0.0001693]
[1742132523240,0.57645551,83109.0,83108.0,0.0021693]
[1742132523419,0.57645551,83109.0,83108.0,0.0041693]
[1742132523620,0.57645551,83109.0,83108.0,0.0021693]
[1742132523822,0.59532032,83109.0,83108.0,0.0001693]
[1742132524025,0.59732032,83109.0,83108.0,0.0001693]
[1742132524875,0.59832032,83109.0,83108.0,0.0001693]
[1742132527035,0.57945551,83109.0,83108.0,0.0001693]
[1742132527650,0.552709,83099.0,83098.0,0.0001694]
[1742132528033,0.56089256,83099.0,83098.0,0.0001694]
[1742132529909,0.56489256,83099.0,83098.0,0.0001694]
[1742132530295,0.56289256,83099.0,83098.0,0.0001694]
[1742132530500,0.56489256,83099.0,83098.0,0.0001694]
[1742132530953,0.68446759,83099.0,83098.0,0.0001694]
[1742132531336,0.56489256,83099.0,83098.0,0.0001694]
[1742132531767,0.58853611,83099.0,83098.0,0.0001694]
[1742132534327,0.58653611,83099.0,83098.0,0.0001694]
[1742132534679,0.58853611,83099.0,83098.0,0.0001694]
[1742132535092,0.59755546,83099.0,83098.0,0.0001694]
[1742132535298,0.59762062,83099.0,83098.0,0.0001694]
[1742132535481,0.61648745,83099.0,83098.0,0.0001694]
[1742132535881,0.5928439,83099.0,83098.0,0.0817694]
[1742132536556,0.5908439,83099.0,83098.0,0.0817694]
[1742132536761,0.5928439,83099.0,83098.0,0.0817694]
[1742132536961,0.5908439,83099.0,83098.0,0.0817694]
[1742132537117,0.5888439,83099.0,83098.0,0.0817694]
[1742132537314,0.5908439,83099.0,83098.0,0.0817694]
[1742132539126,0.5908439,83099.0,83098.0,0.0001694]
[1742132540610,0.57197707,83099.0,83098.0,0.0001694]
[1742132542236,0.68210691,83099.0,83098.0,0.0001694]
[1742132542444,0.82042691,83099.0,83098.0,0.0001694]
[1742132543394,0.81942691,83099.0,83098.0,0.0001694]
[1742132543593,0.82242691,83099.0,83098.0,0.0001694]
[1742132544003,0.84429332,83099.0,83098.0,0.0001694]
[1742132544501,0.73416348,83099.0,83098.0,0.0001694]
[1742132547531,0.73414218,83099.0,83098.0,0.0001694]
[1742132549821,1.49858218,83099.0,83098.0,0.0001694]
[1742132550222,1.47971577,83099.0,83098.0,0.0001694]
[1742132552212,1.47967191,83099.0,83098.0,0.0001694]
[1742132552550,1.47963191,83099.0,83098.0,0.0001694]
[1742132552954,1.56028503,83099.0,83098.0,0.0001694]
[1742132553370,1.47963191,83099.0,83098.0,0.0001694]
[1742132553577,1.49849788,83099.0,83098.0,0.0001694]
[1742132554181,1.23380582,83099.0,83098.0,0.0001694]
[1742132554406,1.47448182,83099.0,83098.0,0.0001694]
[1742132554722,1.48651482,83099.0,83098.0,0.0001694]
[1742132555340,1.60608985,83099.0,83098.0,0.0001694]
[1742132555540,1.48651482,83099.0,83098.0,0.0001694]